bitfinex/quotes_ETHUSD_20230403
["timestamp","ask_amount","ask_price","bid_price","bid_amount"]
[1680527072218,0.72083136,1803.9,1803.8,6.41864744]
[1680527073013,0.02683136,1803.9,1803.8,6.41864744]
[1680527075348,0.02683136,1803.9,1803.8,7.2896739]
[1680527075861,0.02683136,1803.9,1803.8,6.41864744]
[1680527076358,0.02683136,1803.9,1803.8,7.2896739]
[1680527077827,0.02683136,1803.9,1803.8,7.2862827]
[1680527079260,0.02683136,1803.9,1803.8,6.70582196]
[1680527088268,0.02683136,1803.9,1803.8,7.86842415]
[1680527088968,0.02683136,1803.9,1803.8,4.24908687]
[1680527089150,0.784718,1803.9,1803.8,2.79460025]
[1680527090033,0.784718,1803.9,1803.8,3.66562671]
[1680527090254,0.784718,1803.9,1803.8,2.79460025]
[1680527090483,0.784718,1803.9,1803.8,1.0946082]
[1680527091591,0.784718,1803.9,1803.8,1.3717982]
[1680527092089,0.090718,1803.9,1803.8,1.3717982]
[1680527092274,0.090718,1803.9,1803.8,1.66168263]
[1680527092453,0.090718,1803.9,1803.8,1.38449263]
[1680527092661,0.090718,1803.9,1803.8,1.66168263]
[1680527093569,0.090718,1803.9,1803.8,1.38449263]
[1680527093775,0.090718,1803.9,1803.8,1.66168263]
[1680527095246,0.090718,1803.9,1803.8,2.24316128]
[1680527096054,0.02683136,1803.9,1803.8,2.24316128]
[1680527097189,0.02683136,1803.9,1803.8,1.66168263]
[1680527097491,0.02683136,1803.9,1803.8,2.24313303]
[1680527098301,0.02683136,1803.9,1803.8,1.66168263]
[1680527099331,0.02683136,1803.9,1803.8,2.24313174]
[1680527099475,0.02683136,1803.9,1803.8,1.96594174]
[1680527099675,0.02683136,1803.9,1803.8,1.38449263]
[1680527099992,0.02397814,1803.9,1803.8,1.96594706]
[1680527100630,0.02397814,1803.9,1803.8,1.66168263]
[1680527100791,0.02397814,1803.9,1803.8,2.21606263]
[1680527101383,0.02397814,1803.9,1803.8,4.68817467]
[1680527105230,0.02397814,1803.9,1803.8,5.26958427]
[1680527105534,0.02397814,1803.9,1803.8,4.69017467]
[1680527105678,0.02397814,1803.9,1803.8,4.68817467]
[1680527105882,0.02397814,1803.9,1803.8,4.75366842]
[1680527107530,0.02397814,1803.9,1803.8,4.17225991]
[1680527107732,0.02397814,1803.9,1803.8,4.44944991]
[1680527108997,0.02397814,1803.9,1803.8,4.17225991]
[1680527109188,0.02397814,1803.9,1803.8,4.44944991]
[1680527110085,0.02397814,1803.9,1803.8,4.17225991]
[1680527110567,0.02397814,1803.9,1803.8,4.44944991]
[1680527112741,0.02397814,1803.9,1803.8,4.17225991]
[1680527113539,0.02397814,1803.9,1803.8,4.44944991]
[1680527113768,0.02397814,1803.9,1803.8,4.17225991]
[1680527116092,0.02397814,1803.9,1803.8,4.44944991]
[1680527116789,0.02397814,1803.9,1803.8,4.17225991]
[1680527116948,0.02397814,1803.9,1803.8,4.44944991]
[1680527117485,0.02397814,1803.9,1803.8,4.17225991]
[1680527117687,0.02397814,1803.9,1803.8,4.44944991]
[1680527117956,0.02397814,1803.9,1803.8,4.17225991]
[1680527120121,0.02397814,1803.9,1803.8,1.38449263]
[1680527121124,0.02397814,1803.9,1803.8,2.2431242]
[1680527121419,0.02397814,1803.9,1803.8,1.9659342]
[1680527121583,0.02397814,1803.9,1803.8,2.2431242]
[1680527121920,0.02397814,1803.9,1803.8,1.9659342]
[1680527122812,0.02397814,1803.9,1803.8,2.2431242]
[1680527123518,0.02176146,1803.9,1803.8,2.2431242]
[1680527124246,0.02176146,1803.9,1803.8,1.38449263]
[1680527125328,0.02176146,1803.9,1803.8,1.66168263]
[1680527125539,0.02176146,1803.9,1803.8,1.14821646]
[1680527125836,0.85079659,1803.9,1803.7,0.58152268]
[1680527126779,0.15679659,1803.9,1803.7,0.58152268]
[1680527127525,0.15679659,1803.9,1803.7,1.13418028]
[1680527132235,0.02176146,1803.9,1803.8,0.58152268]
[1680527132412,0.02176146,1803.9,1803.7,2.28240674]
[1680527132782,0.02176146,1803.9,1803.7,1.41138028]
[1680527133727,0.02176146,1803.9,1803.8,3.36928996]
[1680527134130,0.02176146,1803.9,1803.8,2.78776728]
[1680527134739,0.02176146,1803.9,1803.7,2.00720674]
[1680527135035,0.02176146,1803.9,1803.7,1.13418028]
[1680527137319,0.5837965,1804.0,1803.7,1.13418028]
[1680527137520,0.00545856,1803.8,1803.7,1.13418028]
[1680527137830,0.00545856,1803.8,1803.7,4.19914756]
[1680527138034,0.00545856,1803.8,1803.7,3.92194756]
[1680527138637,0.5837965,1804.0,1803.7,4.19914756]
[1680527139767,0.54069121,1804.0,1803.7,4.19914756]
[1680527140269,0.54069121,1804.0,1803.7,3.92194756]
[1680527140471,0.54069121,1804.0,1803.7,4.19914756]
[1680527140624,0.00690099,1803.9,1803.7,4.19914756]
[1680527141974,0.54069121,1804.0,1803.7,4.19914756]
[1680527141975,0.4975922,1804.0,1803.7,3.92194756]
[1680527142137,0.4975922,1804.0,1803.7,4.19914756]
[1680527142340,0.4975922,1804.0,1803.7,4.20114756]
[1680527142655,0.00632015,1803.8,1803.7,4.20114756]
[1680527142854,0.00632015,1803.8,1803.7,4.87577542]
[1680527143200,0.00632015,1803.8,1803.7,5.75080188]
[1680527143373,0.00632015,1803.8,1803.7,5.75280188]
[1680527143570,0.4975922,1804.0,1803.7,5.75280188]
[1680527143741,0.4975922,1804.0,1803.7,4.20714756]
[1680527144072,0.4475922,1804.0,1803.7,4.20114756]
[1680527144269,0.4475922,1804.0,1803.7,5.07217402]
[1680527144451,0.4475922,1804.0,1803.7,4.20714756]
[1680527144639,0.4475922,1804.0,1803.7,4.20114756]
[1680527145056,0.4475922,1804.0,1803.7,1.13618028]
[1680527145270,0.4475922,1804.0,1803.7,1.13418028]
[1680527147242,0.3975922,1804.0,1803.7,1.13418028]
[1680527148497,0.6193122,1804.0,1803.7,1.13418028]
[1680527148694,0.6193222,1804.0,1803.7,1.13418028]
[1680527148845,0.3975922,1804.0,1803.7,1.13418028]
[1680527154133,0.694,1803.8,1803.6,2.25162728]
[1680527154272,0.90975,1803.9,1803.6,2.24962728]
[1680527155182,7.18323,1803.9,1803.6,2.24962728]
[1680527155404,7.19093327,1803.9,1803.6,1.6681046]
[1680527155768,0.71909333,1803.8,1803.6,0.58152268]
[1680527156631,0.94084333,1803.8,1803.6,0.58152268]
[1680527156931,0.94084333,1803.8,1803.5,1.45254914]
[1680527157627,0.71909333,1803.8,1803.5,1.45254914]
[1680527161002,0.94084333,1803.8,1803.5,1.45254914]
[1680527161202,0.09408433,1803.7,1803.5,1.45254914]
[1680527162460,0.09408433,1803.7,1803.5,0.58152268]
[1680527162809,0.31584433,1803.7,1803.5,0.58152268]
[1680527163002,0.09408433,1803.7,1803.5,0.58152268]
[1680527164467,0.688,1803.6,1803.4,0.58152268]
[1680527164669,0.0688,1803.5,1803.4,0.58152268]
[1680527164966,0.0688,1803.5,1803.3,0.58152268]
[1680527165456,0.0688,1803.5,1803.3,1.45254914]
[1680527166160,0.0688,1803.5,1803.3,0.58152268]
[1680527168759,0.02255482,1803.4,1803.3,0.58152268]
[1680527169063,0.71655482,1803.4,1803.3,0.58152268]
[1680527169202,0.71655482,1803.4,1803.2,0.87102646]
[1680527169203,0.8172693,1803.4,1803.2,0.58152268]
[1680527169405,1.0390693,1803.4,1803.2,0.58152268]
[1680527169676,1.0390693,1803.4,1803.1,7.33370323]
[1680527169802,1.4826693,1803.4,1803.1,5.91372268]
[1680527170110,0.37008693,1803.3,1803.1,5.91372268]
[1680527170540,0.37008693,1803.3,1803.1,5.90772268]
[1680527170742,0.37008693,1803.3,1803.1,5.3262]
[1680527170958,0.14826693,1803.3,1803.1,5.3262]
[1680527171117,0.37007693,1803.3,1803.1,5.90772268]
[1680527171321,0.37007693,1803.3,1803.1,5.3262]
[1680527171525,1.388,1803.2,1803.1,0.002]
[1680527171707,2.16898969,1803.2,1803.0,0.58152268]
[1680527171913,2.16898969,1803.2,1802.9,3.27727648]
[1680527171914,0.688,1803.1,1802.9,3.27727648]
[1680527172109,0.688,1803.1,1802.9,3.1339158]
[1680527172335,0.688,1803.1,1802.9,1.45254914]
[1680527172761,0.688,1803.1,1802.9,0.58152268]
[1680527172939,0.0688,1803.0,1802.9,0.58152268]
[1680527173148,0.688,1803.1,1802.9,0.58152268]
[1680527174913,0.688,1803.1,1802.8,18.10292268]
[1680527175113,0.68771924,1803.1,1802.8,18.10092268]
[1680527175312,0.68771924,1803.1,1802.8,18.10292268]
[1680527175313,0.68571924,1803.1,1802.8,18.10292268]
[1680527176045,0.68571924,1803.1,1802.8,18.23937972]
[1680527178067,0.65871924,1803.1,1802.8,18.23937972]
[1680527180672,0.65871924,1803.1,1802.8,17.65785704]
[1680527183915,1.70136762,1803.1,1802.8,17.65785704]
[1680527184285,1.47952762,1803.1,1802.8,17.5214]
[1680527185114,1.04264838,1803.1,1802.8,17.5214]
[1680527185424,0.82080838,1803.1,1802.8,17.5214]
[1680527189645,0.71655482,1803.2,1802.8,17.5154]
[1680527190883,0.71655482,1803.2,1802.8,17.79274]
[1680527191134,0.02255482,1803.2,1802.8,17.79274]
[1680527193392,0.02255482,1803.2,1802.8,17.5154]
[1680527193957,0.02255482,1803.2,1802.8,17.79274]
[1680527194872,3.69570327,1803.5,1802.8,22.66102415]
[1680527195031,0.00570327,1803.5,1803.0,0.83193]
[1680527195376,5.10408327,1803.6,1803.0,0.83193]
[1680527196054,4.88230327,1803.6,1803.0,6.49023]
[1680527196262,4.88230327,1803.6,1803.0,10.26614928]
[1680527196263,0.00570327,1803.6,1803.0,10.26614928]
[1680527196554,6.75347327,1803.7,1803.0,10.26614928]
[1680527196767,3.0,1803.6,1803.1,11.34609]
[1680527196933,3.22748327,1803.6,1803.1,11.34809]
[1680527197319,3.22748327,1803.6,1803.1,13.20489393]
[1680527198458,3.25003809,1803.6,1803.1,11.0708]
[1680527202066,3.93803809,1803.6,1803.1,11.0708]
[1680527202644,3.92901379,1803.6,1803.1,11.0768]
[1680527204333,4.37256379,1803.6,1803.1,11.0768]
[1680527206577,8.61776728,1803.5,1803.1,0.008]
[1680527206776,6.524,1803.3,1802.9,0.58752268]
[1680527206980,6.74782,1803.3,1802.9,0.58752268]
[1680527207166,7.19145,1803.3,1802.9,0.58752268]
[1680527209582,7.19145,1803.3,1802.9,0.006]
[1680527209904,0.719145,1803.2,1802.9,0.006]
[1680527210099,0.940975,1803.2,1802.9,0.006]
[1680527210301,0.96352982,1803.2,1802.9,0.58752268]
[1680527213275,0.74169982,1803.2,1802.9,0.58752268]
[1680527213480,0.96352982,1803.2,1802.9,0.58752268]
[1680527213692,0.09635298,1803.1,1802.9,0.58752268]
[1680527216501,0.74169982,1803.2,1802.9,0.58752268]
[1680527216836,0.96352982,1803.2,1802.9,0.58752268]
[1680527220935,0.96352982,1803.2,1802.9,0.006]
[1680527225996,0.96062616,1803.2,1802.9,0.006]
[1680527226197,0.96062616,1803.2,1802.8,0.58752268]
[1680527229252,0.696,1803.3,1802.8,3.65262996]
[1680527229596,3.4436,1803.4,1802.9,0.58152268]
[1680527229900,0.22181,1803.3,1802.9,0.58152268]
[1680527230197,1.35944,1803.3,1802.9,0.58152268]
[1680527230400,7.18944,1803.3,1802.8,0.58752268]
[1680527230555,0.718944,1803.2,1802.8,0.58752268]
[1680527230752,0.22184,1803.1,1802.8,1.45854914]
[1680527231021,6.772774,1803.2,1802.8,0.58752268]
[1680527231260,6.772774,1803.2,1802.8,1.45854914]
[1680527232956,6.79532882,1803.2,1802.8,1.45854914]
[1680527234922,6.79532882,1803.2,1802.9,0.58152268]
[1680527235256,0.67953288,1803.1,1802.9,0.58152268]
[1680527235430,0.67953288,1803.1,1802.8,1.45854914]
[1680527236565,6.07638482,1803.2,1802.8,1.45854914]
[1680527237156,6.07638482,1803.2,1802.8,0.58752268]
[1680527238569,6.07638482,1803.2,1802.8,1.45854914]
[1680527239079,6.07638482,1803.2,1802.8,0.58752268]
[1680527240031,6.07638482,1803.2,1802.8,1.45854914]
[1680527240232,6.43763848,1803.1,1802.8,1.45854914]
[1680527240433,6.43963848,1803.1,1802.8,1.45854914]
[1680527243285,6.43963848,1803.1,1802.9,0.58152268]
[1680527246085,0.1671865,1803.0,1802.9,0.58152268]
[1680527252791,0.17291806,1803.0,1802.9,1.45254914]
[1680527252998,0.17291806,1803.0,1802.9,1.45854914]
[1680527255998,0.83417371,1803.0,1802.9,0.58752268]
[1680527256142,0.83417371,1803.0,1802.9,0.58352268]
[1680527256347,0.17291806,1803.0,1802.9,0.58152268]
[1680527256549,0.17291806,1803.0,1802.9,1.45306136]
[1680527267820,0.17291806,1803.0,1802.9,0.87102646]
[1680527271705,0.17291806,1803.0,1802.9,1.45311243]
[1680527274616,0.17291806,1803.0,1802.9,0.58208597]
[1680527280687,0.17291806,1803.0,1802.9,0.87102646]
[1680527284041,0.24115151,1803.0,1802.9,0.87102646]
[1680527288257,0.24115151,1803.0,1802.9,1.45313465]
[1680527292264,0.24115151,1803.0,1802.9,0.87102646]
[1680527292445,0.24115151,1803.0,1802.9,1.45315127]
[1680527305668,0.24115151,1803.0,1802.9,0.58212481]
[1680527309584,0.24115151,1803.0,1802.9,1.45315127]
[1680527310563,0.46060563,1803.0,1802.8,0.58212481]
[1680527310772,6.38103419,1803.0,1802.8,0.58212481]
[1680527310929,6.38303419,1803.0,1802.8,0.58212481]
[1680527311522,6.38303419,1803.0,1802.7,17.53532481]
[1680527312071,7.07703419,1803.0,1802.7,17.53532481]
[1680527314172,7.09958901,1803.0,1802.7,17.53532481]
[1680527314371,0.7099589,1802.9,1802.7,17.53532481]
[1680527314924,0.25521873,1802.8,1802.7,17.53532481]
[1680527318961,0.26112735,1802.8,1802.7,17.53532481]
[1680527319545,0.26112735,1802.8,1802.7,16.9532]
[1680527333221,1.62074735,1802.8,1802.7,0.108]
[1680527333397,1.33907209,1802.8,1802.7,0.1]
[1680527337610,0.26112735,1802.8,1802.7,0.1]
[1680527360727,0.26112735,1802.8,1802.7,0.68212481]
[1680527360933,0.26112735,1802.8,1802.7,0.1]
[1680527361284,0.26112735,1802.8,1802.7,0.68212481]
[1680527376622,0.24047741,1802.8,1802.7,0.68212481]
[1680527380972,0.26303223,1802.8,1802.7,0.68212481]
[1680527394489,12.33498548,1802.8,1802.7,0.1]
[1680527394670,15.33698548,1802.8,1802.7,0.1]
[1680527395045,15.33128221,1802.8,1802.7,0.07713524]
[1680527395593,15.3203957,1802.8,1802.7,0.07713524]
[1680527395735,16.18932246,1802.8,1802.7,0.07713524]
[1680527396085,15.6086176,1802.8,1802.7,0.05469539]
[1680527396901,15.6086176,1802.8,1802.7,0.03246525]
[1680527397186,17.89704026,1802.8,1802.7,0.03246525]
[1680527397556,17.60838723,1802.8,1802.7,0.03246525]
[1680527397885,18.47731399,1802.8,1802.7,0.03246525]
[1680527398086,18.47731399,1802.8,1802.7,0.0104143]
[1680527398667,3.5606176,1802.8,1802.7,0.0104143]
[1680527399009,0.24047741,1802.8,1802.6,0.1]
[1680527399484,0.24047741,1802.8,1802.6,0.37737]
[1680527400050,0.17744434,1802.7,1802.6,0.37937]
[1680527400295,0.17744434,1802.7,1802.6,0.38337]
[1680527400509,0.17744434,1802.7,1802.6,0.93812]
[1680527402152,35.002,1803.0,1802.6,0.93812]
[1680527404113,0.20887648,1802.9,1802.6,0.93812]
[1680527404329,0.20887648,1802.9,1802.6,0.38337]
[1680527404828,0.21501166,1802.9,1802.6,0.38337]
[1680527410461,0.21501166,1802.9,1802.6,0.93812]
[1680527436617,0.21501166,1802.9,1802.6,0.106]
[1680527437243,6.7769396,1802.9,1802.6,0.38337]
[1680527437542,6.7789396,1802.9,1802.6,0.38337]
[1680527438045,6.7789396,1802.9,1802.6,0.106]
[1680527438279,6.7789396,1802.9,1802.6,0.38337]
[1680527438434,6.78464287,1802.9,1802.6,0.32737]
[1680527438633,0.67846429,1802.8,1802.6,0.32737]
[1680527439025,0.8456375,1802.8,1802.6,0.32737]
[1680527442224,6.6756375,1802.8,1802.6,0.05]
[1680527442464,6.70589559,1802.8,1802.6,0.32737]
[1680527442830,0.0061226,1802.7,1802.6,0.32737]
[1680527443029,0.67732442,1802.7,1802.6,0.32737]
[1680527443535,0.0061226,1802.7,1802.6,0.32737]
[1680527444046,0.17278773,1802.7,1802.6,0.32737]
[1680527445335,0.17278773,1802.7,1802.6,0.32737]
[1680527447078,0.0061226,1802.7,1802.6,0.32737]
[1680527448436,0.0061226,1802.7,1802.6,0.90949481]
[1680527449038,0.0061226,1802.7,1802.6,0.32737]
[1680527452840,0.0061226,1802.7,1802.6,0.05]
[1680527460192,0.0061226,1802.7,1802.6,0.20155107]
[1680527462267,5.8361226,1802.7,1802.6,0.20155107]
[1680527462601,6.49909361,1802.7,1802.6,0.20155107]
[1680527465001,0.66909361,1802.7,1802.6,0.20155107]
[1680527465203,0.66139034,1802.7,1802.6,0.20155107]
[1680527465913,0.0061226,1802.7,1802.6,0.47892107]
[1680527468978,0.0061226,1802.7,1802.6,0.20155107]
[1680527470516,0.0061226,1802.7,1802.6,0.47892107]
[1680527471495,0.0061226,1802.7,1802.6,0.20155107]
[1680527472070,0.0061226,1802.7,1802.6,0.47892107]
[1680527472472,0.0061226,1802.7,1802.6,0.20155107]
[1680527482408,0.00402071,1802.7,1802.6,1.06104588]
[1680527483085,3.0,1802.9,1802.6,1.06104588]
[1680527483624,4.28197098,1803.0,1802.6,1.06104588]
[1680527483824,0.00622728,1802.7,1802.6,1.06104588]
[1680527484023,0.00622728,1802.7,1802.6,3.07051111]
[1680527484215,0.00622728,1802.7,1802.6,4.04741276]
[1680527484425,0.00622728,1802.7,1802.6,12.37995577]
[1680527484771,0.00622728,1802.7,1802.6,13.37260632]
[1680527484936,30.232,1803.2,1802.6,13.37260632]
[1680527485119,0.002,1803.2,1803.0,0.687]
[1680527485325,31.68689774,1803.5,1803.0,1.26886492]
[1680527485650,0.00770327,1803.5,1803.1,0.83188]
[1680527485969,0.58026771,1803.6,1803.1,0.27729]
[1680527486974,0.00585364,1803.4,1803.1,0.83189]
[1680527487173,0.00585364,1803.4,1803.2,0.360469]
[1680527487375,0.00585364,1803.4,1803.2,0.27728]
[1680527487942,3.58597098,1803.6,1803.2,0.27728]
[1680527489176,3.58597098,1803.6,1803.1,0.5546]
[1680527489377,3.58026771,1803.6,1803.1,0.83188]
[1680527489672,3.58597098,1803.6,1803.1,0.83188]
[1680527489874,3.58597098,1803.6,1803.1,0.983768]
[1680527490358,3.00570327,1803.6,1803.1,0.983768]
[1680527490559,3.0,1803.6,1803.1,0.983768]
[1680527491440,3.0,1803.6,1803.1,12.718168]
[1680527491643,3.00570327,1803.6,1803.1,12.720168]
[1680527491830,3.00570327,1803.6,1803.2,1.2720168]
[1680527492031,3.00570327,1803.6,1803.3,0.27726]
[1680527492976,0.00570327,1803.6,1803.3,0.83179]
[1680527493179,3.00570327,1803.7,1803.3,0.83179]
[1680527493384,0.00570327,1803.7,1803.3,1.63107068]
[1680527493590,0.11570328,1803.8,1803.3,2.74014068]
[1680527493896,0.11000001,1803.8,1803.3,2.74014068]
[1680527494385,0.11000001,1803.8,1803.5,0.8317]
[1680527494544,0.11000001,1803.8,1803.7,0.2772]
[1680527494766,0.11000001,1803.8,1803.6,0.27721]
[1680527494963,0.11000001,1803.8,1803.6,0.83165]
[1680527497592,0.11000001,1803.8,1803.6,3.61941728]
[1680527499875,0.11000001,1803.8,1803.6,3.61941728]
[1680527500866,0.11000001,1803.8,1803.6,3.57141728]
[1680527501073,0.11000001,1803.8,1803.7,0.35714173]
[1680527501275,0.11000001,1803.8,1803.7,1.18875173]
[1680527504621,0.11000001,1803.8,1803.7,3.97651901]
[1680527505569,0.11000001,1803.8,1803.7,15.26821901]
[1680527505775,0.11000001,1803.8,1803.7,12.12531]
[1680527506014,0.11000001,1803.8,1803.7,11.5709]
[1680527506708,0.11000001,1803.8,1803.7,11.2937]
[1680527507064,0.11000001,1803.8,1803.7,11.5709]
[1680527507912,0.11587879,1803.8,1803.7,11.5709]
[1680527509412,0.11587879,1803.8,1803.7,12.12531]
[1680527513222,0.11587879,1803.8,1803.7,0.83361]
[1680527513389,0.11587879,1803.8,1803.7,0.83161]
[1680527515721,0.11587879,1803.8,1803.5,5.6441]
[1680527516052,0.20786667,1803.8,1803.5,0.002]
[1680527516366,0.20786667,1803.8,1803.4,11.72524]
[1680527516516,0.20786667,1803.8,1803.4,11.448]
[1680527517065,0.21356994,1803.8,1803.4,11.448]
[1680527517966,0.21356994,1803.8,1803.4,11.72524]
[1680527518175,0.21356994,1803.8,1803.4,11.448]
[1680527518526,0.21356994,1803.8,1803.4,11.72525]
[1680527518909,0.21356994,1803.8,1803.4,11.448]
[1680527519111,0.21356994,1803.8,1803.4,11.72525]
[1680527519511,0.21356994,1803.8,1803.4,11.448]
[1680527522037,0.90156994,1803.8,1803.4,11.448]
[1680527522333,0.09015699,1803.7,1803.4,11.448]
[1680527522556,0.09586026,1803.7,1803.4,11.448]
[1680527525120,0.20769116,1803.8,1803.4,11.448]
[1680527526271,0.20769116,1803.8,1803.4,11.72525]
[1680527526841,0.00618421,1803.7,1803.4,11.72525]
[1680527527724,0.00618421,1803.7,1803.4,11.448]
[1680527528441,0.00618421,1803.7,1803.4,12.27975]
[1680527528645,0.00618421,1803.7,1803.4,13.507725]
[1680527529987,0.00618421,1803.7,1803.4,16.29549228]
[1680527537159,0.00618421,1803.7,1803.4,11.448]
[1680527543695,0.00618421,1803.7,1803.4,0.002]
[1680527543696,0.694,1803.6,1803.4,0.002]
[1680527543858,0.694,1803.6,1803.2,5.91036492]
[1680527544197,0.91577,1803.6,1803.2,5.3285]
[1680527544356,0.92147327,1803.6,1803.2,5.3285]
[1680527544558,0.94402809,1803.6,1803.2,5.3285]
[1680527545283,0.09440281,1803.5,1803.2,5.3285]
[1680527545464,0.02255482,1803.4,1803.2,0.002]
[1680527545672,0.71426812,1803.4,1803.1,12.72776492]
[1680527545871,0.71426812,1803.4,1803.1,12.1499]
[1680527546457,0.71426812,1803.4,1803.1,12.73176492]
[1680527546653,0.07142681,1803.3,1803.1,12.72576492]
[1680527546958,0.07142681,1803.3,1803.1,12.1439]
[1680527547157,0.71426812,1803.4,1803.1,12.1439]
[1680527547429,0.93606812,1803.4,1803.1,12.1439]
[1680527547709,0.00691312,1803.2,1803.1,12.1439]
[1680527548091,0.93700123,1803.2,1803.1,0.002]
[1680527548295,7.99235135,1803.2,1802.8,1.45466229]
[1680527548607,0.22186,1802.9,1802.7,0.58786492]
[1680527548755,1.35356,1803.0,1802.7,0.58186492]
[1680527549158,6.73986,1803.0,1802.7,0.58186492]
[1680527549497,0.91587,1802.8,1802.6,0.20155107]
[1680527551372,6.74587,1802.8,1802.6,0.20155107]
[1680527551581,6.526,1802.8,1802.6,0.20155107]
[1680527552099,5.832,1802.8,1802.6,0.20155107]
[1680527553962,6.05387,1802.8,1802.6,0.20155107]
[1680527554157,0.605387,1802.7,1802.6,0.20155107]
[1680527559304,0.002,1802.8,1802.6,0.20155107]
[1680527559445,8.832,1803.0,1802.6,0.47892107]
[1680527560379,8.832,1803.0,1802.6,0.20155107]
[1680527560582,8.832,1803.0,1802.6,0.47892107]
[1680527561568,11.84161728,1803.0,1802.6,0.20155107]
[1680527561768,8.24616173,1802.9,1802.6,0.20155107]
[1680527561972,0.22187,1802.8,1802.6,0.20155107]
[1680527562267,8.47003173,1802.9,1802.6,0.20155107]
[1680527563237,8.91375173,1802.9,1802.6,0.20155107]
[1680527564101,11.70151901,1802.9,1802.6,0.20155107]
[1680527564399,7.0001519,1802.8,1802.6,0.20155107]
[1680527564704,7.2240319,1802.8,1802.6,0.20155107]
[1680527567759,7.2202546,1802.8,1802.6,0.20155107]
[1680527568252,13.39876728,1802.7,1802.6,0.20155107]
[1680527568498,18.06641728,1802.7,1802.6,0.20155107]
[1680527568704,20.20165047,1802.7,1802.6,0.20155107]
[1680527569513,22.41965047,1802.7,1802.6,0.20155107]
[1680527571816,22.43991858,1802.7,1802.6,0.20155107]
[1680527574693,22.44680025,1802.7,1802.6,0.20155107]
[1680527578033,19.11980025,1802.7,1802.6,0.20155107]
[1680527581038,18.11980025,1802.7,1802.6,0.20155107]
[1680527581332,0.00888167,1802.7,1802.6,0.20155107]
[1680527581633,0.00688167,1802.7,1802.6,0.20155107]
[1680527583147,3.22876167,1802.7,1802.6,0.20155107]
[1680527583637,9.05876167,1802.7,1802.6,0.20155107]
[1680527583833,9.06076167,1802.7,1802.6,0.20155107]
[1680527585327,8.83888167,1802.7,1802.6,0.20155107]
[1680527587741,3.00888167,1802.7,1802.6,0.20155107]
[1680527587909,3.00688167,1802.7,1802.6,0.20155107]
[1680527588119,0.00688167,1802.7,1802.6,0.47892107]
[1680527588313,0.00688167,1802.7,1802.6,0.59229018]
[1680527588537,0.00688167,1802.7,1802.6,1.14704018]
[1680527589302,0.00688167,1802.7,1802.6,2.37904018]
[1680527589653,3.0,1803.2,1802.6,2.37904018]
[1680527590451,3.0,1803.2,1802.6,5.16680746]
[1680527590651,0.00574097,1803.1,1802.7,0.51668075]
[1680527590886,0.00574097,1803.1,1802.7,5.90878075]
[1680527591084,0.00574097,1803.1,1802.7,5.91078075]
[1680527591599,0.22758097,1803.1,1802.7,5.91078075]
[1680527591905,0.22758097,1803.1,1802.7,5.90739794]
[1680527593458,0.00574097,1803.1,1802.8,0.59073979]
[1680527593877,0.00574097,1803.1,1802.8,12.36233979]
[1680527594209,0.22758097,1803.1,1802.8,12.36433979]
[1680527594573,0.00574097,1803.1,1802.8,12.36433979]
[1680527594773,0.22758097,1803.1,1802.8,12.36433979]
[1680527597228,0.22758097,1803.1,1802.8,11.7736]
[1680527600236,0.00574097,1803.1,1802.8,11.7736]
[1680527600779,0.22758097,1803.1,1802.8,11.7736]
[1680527601798,0.00574097,1803.1,1802.8,11.7736]
[1680527608816,0.00574097,1803.1,1802.8,11.7736]
[1680527612224,0.22758097,1803.1,1802.8,11.7736]
[1680527612432,0.00574097,1803.1,1802.8,11.7736]
[1680527613157,0.00329285,1803.1,1802.8,11.7796]
[1680527613456,0.00329285,1803.1,1802.8,13.52483499]
[1680527615316,0.00329285,1803.1,1802.8,11.7796]
[1680527616763,1.44813285,1803.1,1802.8,11.7796]
[1680527617227,0.91913285,1803.1,1802.8,11.7796]
[1680527617660,3.91913285,1803.1,1802.8,11.7796]
[1680527625058,3.69729285,1803.1,1802.8,11.7796]
[1680527625748,3.69729285,1803.1,1802.8,13.55495649]
[1680527625943,3.00329285,1803.1,1802.9,0.00329953]
[1680527627059,0.00013351,1802.9,1802.8,13.54895649]
[1680527629693,0.00013351,1802.9,1802.8,14.13082141]
[1680527630167,0.00013351,1802.9,1802.8,14.40816141]
[1680527631708,0.00442128,1802.9,1802.8,14.40816141]
[1680527632697,0.00870905,1802.9,1802.8,14.40816141]
[1680527634472,0.00870905,1802.9,1802.8,12.92373737]
[1680527635201,0.00870905,1802.9,1802.8,13.50526915]
[1680527636468,0.00870905,1802.9,1802.8,13.22792915]
[1680527636669,0.00870905,1802.9,1802.8,13.50526915]
[1680527637406,0.00870905,1802.9,1802.8,12.92373737]
[1680527637940,0.00870905,1802.9,1802.8,13.227877]
[1680527638217,0.00870905,1802.9,1802.8,13.50517359]
[1680527639827,0.00870905,1802.9,1802.8,12.35503622]
[1680527641226,0.00870905,1802.9,1802.8,13.22783359]
[1680527643338,0.00857554,1802.9,1802.8,13.22783359]
[1680527646038,0.00857554,1802.9,1802.8,12.35503622]
[1680527647621,0.00857554,1802.9,1802.8,13.22783359]
[1680527647936,0.00857554,1802.9,1802.8,12.35503622]
[1680527648683,0.00857554,1802.9,1802.8,11.7736]
[1680527650337,0.23043554,1802.9,1802.8,0.002]
[1680527650549,0.23043554,1802.9,1802.7,5.97753622]
[1680527650550,0.32270905,1802.9,1802.7,5.97753622]
[1680527650689,0.32270905,1802.9,1802.7,5.97953622]
[1680527650892,0.32270905,1802.9,1802.7,5.3981]
[1680527651106,0.32270905,1802.9,1802.7,5.97953622]
[1680527651300,0.10084905,1802.9,1802.7,5.97753622]
[1680527651839,0.10300329,1802.9,1802.7,5.97753622]
[1680527652631,0.10300329,1802.9,1802.7,5.97553622]
[1680527653223,0.01072978,1802.9,1802.7,5.97553622]
[1680527660047,0.01072978,1802.9,1802.7,5.3941]
[1680527664157,0.01072978,1802.9,1802.7,5.97553622]
[1680527679051,0.01072978,1802.9,1802.7,6.25289622]
[1680527680876,0.01072978,1802.9,1802.7,5.97553622]
[1680527681202,0.01072978,1802.9,1802.7,6.25289622]
[1680527681494,0.01072978,1802.9,1802.7,5.97553622]
[1680527681703,0.01072978,1802.9,1802.7,6.25289622]
[1680527686388,0.01072978,1802.9,1802.7,7.12569359]
[1680527688369,0.01072978,1802.9,1802.7,6.84833359]
[1680527688575,0.01072978,1802.9,1802.7,6.25289622]
[1680527690322,0.01072978,1802.9,1802.7,7.12569359]
[1680527691545,0.01072978,1802.9,1802.8,3.3692035]
[1680527691687,0.00866226,1802.9,1802.8,6.76570448]
[1680527691885,0.00428777,1802.9,1802.8,6.18443002]
[1680527692192,0.00428777,1802.9,1802.8,5.89247805]
[1680527692542,0.00428777,1802.9,1802.8,15.22734227]